lending/lending_fUSD_20240401
["ID","MTS","AMOUNT","RATE_DAILY","PERIOD"]
[321223488,1711990238706,-337.8,0.00059,9]
[321223489,1711990238716,-337.8,0.00059,9]
[321223490,1711990238725,-337.8,0.00059,9]
[321223491,1711990238735,-337.8,0.00059,9]
[321223492,1711990238744,-337.8,0.00059,9]
[321223493,1711990238754,-337.8,0.00059,9]
[321223494,1711990238764,-337.8,0.00059,9]
[321223495,1711990238773,-337.8,0.00059,9]
[321223496,1711990238782,-337.8,0.00059,9]
[321223497,1711990238790,-337.8,0.00059,9]
[321223498,1711990238799,-337.8,0.00059,9]
[321223499,1711990238808,-337.8,0.00059,9]
[321223500,1711990238818,-337.8,0.00059,9]
[321223501,1711990238829,-337.8,0.00059,9]
[321223502,1711990238840,-519.60094451,0.00059,7]
[321223503,1711990238852,-16606.75471332,0.00059,7]
[321223504,1711990238865,-1324.02434217,0.00059,7]
[321223505,1711990238874,-4312.850094,0.00059,30]
[321223506,1711990238884,-500.0,0.00059029,120]
[321223507,1711990238893,-1053.0,0.000591,7]
[321223508,1711990238902,-500.0,0.00059108,120]
[321223509,1711990238911,-500.0,0.00059177,120]
[321223510,1711990238921,-1200.0,0.000592,4]
[321223511,1711990238931,-306.06081953,0.00059286,2]
[321223512,1711990238941,-500.0,0.00059303,120]
[321223514,1711990238951,-500.0,0.00059382,120]
[321223515,1711990238960,-150.0,0.00059386,120]
[321223516,1711990238969,-1178.0,0.00059386,120]
[321223517,1711990238978,-18241.324,0.00059386,120]
[321223518,1711990238990,-500.0,0.00059451,120]
[321223519,1711990239004,-5000.0,0.0005955,120]
[321223520,1711990239017,-500.0,0.00059576,120]
[321223521,1711990239029,-157.86976826,0.00059636,120]
[321223522,1711990239039,-500.0,0.00059656,120]
[321223523,1711990239051,-2631.04415732,0.00059682,2]
[321223524,1711990239062,-159.19437397,0.00059719,120]
[321223525,1711990239073,-500.0,0.00059725,120]
[321223526,1711990239083,-500.0,0.0005975,90]
[321223527,1711990239093,-303.05,0.0005985,120]
[321223528,1711990239103,-5800.0,0.00059873,18]
[321223529,1711990239112,-5800.0,0.00059881,18]
[321223530,1711990239123,-5800.0,0.0005989,18]
[321223531,1711990239134,-1189.43488635,0.000599,120]
[321223532,1711990239146,-1189.43488635,0.000599,120]
[321223533,1711990239156,-1189.43488635,0.000599,120]
[321223534,1711990239168,-1189.43488635,0.000599,120]
[321223535,1711990239180,-1189.43488635,0.000599,120]
[321223536,1711990239192,-1189.43488635,0.000599,120]
[321223537,1711990239206,-1189.43488635,0.000599,120]
[321223538,1711990239218,-1189.43488635,0.000599,120]
[321223539,1711990239229,-1189.43488635,0.000599,120]
[321223540,1711990239240,-1189.43488635,0.000599,120]
[321223541,1711990239252,-1189.43488635,0.000599,120]
[321223542,1711990239263,-1189.43488635,0.000599,120]
[321223543,1711990239274,-1189.43488635,0.000599,120]
[321223544,1711990239285,-1189.43488635,0.000599,120]
[321223545,1711990239296,-1189.43488635,0.000599,120]
[321223546,1711990239308,-1189.43488635,0.000599,120]
[321223547,1711990239320,-1189.43488635,0.000599,120]
[321223548,1711990239335,-500.0,0.0005993,120]
[321223549,1711990239345,-5022.6564,0.0005994,30]
[321223550,1711990239356,-200.0,0.00059987,2]
[321223551,1711990239366,-200.0,0.00059987,3]
[321223552,1711990239376,-500.0,0.00059999,120]
[321223553,1711990239387,-100000.0,0.0006,60]
[321223554,1711990239399,-8905.49848806,0.0006,120]
[321223555,1711990239411,-1652.648893,0.0006,120]
[321223556,1711990239422,-3199.90089924,0.0006,90]
[321223557,1711990239432,-518.06512933,0.0006,90]
[321223558,1711990239442,-1495.19701797,0.0006,7]
[321223559,1711990239453,-1000.12345778,0.0006,120]
[321223560,1711990239463,-4731.65770136,0.0006,120]
[321223561,1711990239474,-326.92070599,0.0006,100]
[321223562,1711990239484,-368.0,0.0006,120]
[321223563,1711990239497,-159.19437397,0.00060003,120]
[321223564,1711990239507,-1189.43488635,0.00060075,120]
[321223565,1711990239518,-1000.0,0.000602,7]
[321223566,1711990239529,-157.51963398,0.00060204,120]
[321223567,1711990239540,-595.6496,0.00060204,120]
[321223568,1711990239553,-150.79,0.00060264,120]
[321223569,1711990239563,-155.7454303,0.00060269,120]
[321223570,1711990239573,-666.0,0.00060273,120]
[321223571,1711990239582,-500.0,0.00060273,120]
[321223572,1711990239591,-151.0,0.00060274,120]
[321223573,1711990239600,-37164.23,0.00060274,30]
[321223574,1711990239610,-500.0,0.00060298,90]
[321223575,1711990239620,-152.93655063,0.00060375,120]
[321223576,1711990239632,-13586.00689432,0.0006039,2]
[321223577,1711990239642,-296.53,0.00060397,120]
[321223578,1711990239653,-9025.69162966,0.000604,120]
[321223579,1711990239663,-1189.43488635,0.00060487,120]
[321223580,1711990239673,-168.08128427,0.00060493,120]
[321223581,1711990239683,-154.8746176,0.00060493,120]
[321223582,1711990239695,-163.96,0.00060526,120]
[321223583,1711990239706,-496.7207,0.00060547,120]
[321223584,1711990239716,-5000.0,0.00060547,120]
[321223585,1711990239726,-155.63462026,0.00060693,7]
[321223586,1711990239736,-153.25512,0.00060728,120]
[321223587,1711990239746,-155.90767022,0.00060736,120]
[321223588,1711990239756,-154.47720026,0.00060783,120]
[321223589,1711990239766,-328.80906049,0.00060799,120]
[321223590,1711990239777,-39869.9327,0.000608,2]
[321223591,1711990239786,-100000.0,0.000608,2]
[321223592,1711990239796,-154.1257845,0.000608,85]
[321223593,1711990239806,-157.01297015,0.00060836,120]
[321223594,1711990239817,-45544.6089886,0.00060897,120]
[321223595,1711990239829,-394.07687143,0.00060897,120]
[321223596,1711990239838,-1132.68418202,0.00060898,120]
[321223597,1711990239849,-500.0,0.00060898,2]
[321223598,1711990239859,-79394.0995,0.00060898,2]
[321223599,1711990239869,-337.1387,0.00060898,2]
[321223600,1711990239880,-1074.64093951,0.00060899,120]
[321223601,1711990239890,-958.11,0.00060899,120]
[321223602,1711990239900,-245000.0,0.000609,2]
[321223603,1711990239910,-1691.22486444,0.000609,40]
[321223604,1711990239921,-2882.09175725,0.000609,85]
[321223605,1711990239932,-648.95150882,0.000609,30]
[321223606,1711990239943,-1189.43488635,0.000609,120]
[321223607,1711990239954,-626.60839085,0.000609,2]
[321223608,1711990239965,-200.83032338,0.000609,62]
[321223609,1711990239976,-16986.75616848,0.000609,120]
[321223610,1711990239986,-817.43,0.00060904,30]
[321223611,1711990239996,-217.855825,0.00060915,30]
[321223613,1711990240006,-5563699.71119188,0.00060974,120]
[321223614,1711990240016,-154.47720026,0.00060981,120]
[321223615,1711990240026,-150.0,0.00060986,120]
[321223616,1711990240036,-150.0,0.00060986,120]
[321223617,1711990240046,-150.0,0.00060986,120]
[321223618,1711990240056,-160.22977354,0.00060986,120]
[321223619,1711990240067,-1200.0,0.00060986,30]
[321223620,1711990240080,-2631.04415732,0.00060987,2]
[321223621,1711990240090,-200.0,0.00060987,3]
[321223622,1711990240101,-868.62075854,0.00060998,7]
[321223623,1711990240111,-4347.83531959,0.00060998,7]
[321223624,1711990240122,-286.07270811,0.00060998,7]
[321223625,1711990240132,-155.0,0.00060998,7]
[321223626,1711990240142,-1203.36847789,0.00060998,7]
[321223627,1711990240153,-575.61052641,0.00060998,7]
[321223628,1711990240162,-3149.40688435,0.00060998,7]
[321223629,1711990240173,-155.98337894,0.00060998,7]
[321223630,1711990240184,-155.0,0.00060998,7]
[321223631,1711990240195,-156.31285681,0.00060998,7]
[321223632,1711990240205,-340.52396705,0.00060998,7]
[321223633,1711990240215,-3090.22216116,0.00060998,7]
[321223634,1711990240224,-321.35550353,0.00060998,7]
[321223635,1711990240233,-730.73671556,0.00060998,7]
[321223636,1711990240243,-22046.07854594,0.00060998,7]
[321223637,1711990240253,-155.66866999,0.00060998,7]
[321223638,1711990240262,-569.51848263,0.00060998,2]
[321223639,1711990240273,-542.13216509,0.00060998,7]
[321223640,1711990240283,-2632.34542249,0.00060998,7]
[321223641,1711990240295,-854.93307856,0.00060998,30]
[321223642,1711990240306,-2345.35254533,0.00060998,7]
[321223643,1711990240317,-11826.44803425,0.00060999,2]
[321223644,1711990240334,-643854.51210753,0.00060999,36]
[321223645,1711990240345,-200000.0,0.00061,61]
[321223646,1711990240355,-1833795.76611408,0.00061,120]
[321223647,1711990240366,-3069.07265392,0.00061,3]
[321223648,1711990240376,-150.0,0.00061,115]
[321223649,1711990240385,-165.03,0.00061,30]
[321223650,1711990240396,-166.12,0.00061,14]
[321223651,1711990240409,-618.95074,0.00061,101]
[321223652,1711990240421,-152.93655063,0.00061004,120]
[321223653,1711990240432,-488.85,0.00061009,2]
[321223654,1711990240444,-156.90909189,0.00061063,120]
[321223655,1711990240455,-157.01297015,0.00061133,120]
[321223656,1711990240467,-155.2939633,0.00061152,120]
[321223657,1711990240477,-168.08128427,0.00061315,120]
[321223658,1711990240489,-154.8746176,0.00061315,120]
[321223659,1711990240500,-1691.22486434,0.00061355,41]
[321223660,1711990240511,-155.97839752,0.00061372,120]
[321223661,1711990240521,-155.7454303,0.00061487,120]
[321223662,1711990240531,-2100.0,0.00061497,120]
[321223663,1711990240541,-300.0,0.00061497,30]
[321223664,1711990240551,-150.0,0.000615,116]
[321223665,1711990240562,-154.26,0.000615,10]
[321223666,1711990240573,-154.26,0.000615,10]
[321223667,1711990240585,-337.8,0.000615,10]
[321223668,1711990240595,-337.8,0.000615,10]
[321223669,1711990240605,-337.8,0.000615,10]
[321223670,1711990240615,-337.8,0.000615,10]
[321223671,1711990240626,-337.8,0.000615,10]
[321223672,1711990240636,-337.8,0.000615,10]
[321223673,1711990240646,-337.8,0.000615,10]
[321223674,1711990240657,-337.8,0.000615,10]
[321223675,1711990240668,-337.8,0.000615,10]
[321223676,1711990240678,-337.8,0.000615,10]
[321223678,1711990240689,-337.8,0.000615,10]
[321223680,1711990240700,-337.8,0.000615,10]
[321223681,1711990240710,-337.8,0.000615,10]
[321223682,1711990240721,-337.8,0.000615,10]
[321223683,1711990240731,-337.8,0.000615,10]
[321223684,1711990240741,-337.8,0.000615,10]
[321223685,1711990240752,-337.8,0.000615,10]
[321223686,1711990240763,-337.8,0.000615,10]
[321223687,1711990240775,-337.8,0.000615,10]
[321223688,1711990240785,-337.8,0.000615,10]
[321223689,1711990240795,-155.7454303,0.00061562,120]
[321223690,1711990240806,-151.0,0.000616,120]
[321223691,1711990240816,-155.2939633,0.00061608,120]
[321223692,1711990240828,-200.83032336,0.0006165,63]
[321223693,1711990240838,-1000.0,0.000617,7]
[321223694,1711990240848,-200.0,0.00061724,120]
[321223695,1711990240859,-800.0,0.00061724,120]
[321223696,1711990240868,-500.0,0.00061724,120]
[321223697,1711990240878,-200.0,0.00061724,120]
[321223698,1711990240889,-1000.0,0.00061732,120]
[321223699,1711990240899,-5050.0,0.00061802,2]
[321223700,1711990240909,-201.0,0.00061802,2]
[321223701,1711990240919,-1691.22486434,0.00061809,41]
[321223702,1711990240930,-3331.58243374,0.00061917,120]
[321223703,1711990240942,-152.64,0.00061929,120]
[321223704,1711990240952,-200.0,0.00061987,3]
[321223705,1711990240962,-302.94,0.00061999,120]
[321223706,1711990240972,-200000.0,0.00062,62]
[321223707,1711990240983,-500.0,0.00062,30]
[321223708,1711990240993,-2000000.0,0.00062,120]
[321223709,1711990241003,-150.0,0.00062,117]
[321223710,1711990241013,-151.0,0.00062027,120]
[321223711,1711990241023,-294.0,0.0006208,60]
[321223712,1711990241033,-175.0,0.0006211,120]
[321223713,1711990241042,-168.08128427,0.0006211,120]
[321223714,1711990241052,-165.40642138,0.0006211,120]
[321223715,1711990241061,-154.8746176,0.0006211,120]
[321223716,1711990241253,-157.01297015,0.00062253,120]
[321223717,1711990241262,-1691.22486434,0.00062264,42]
[321223718,1711990241271,-2631.04415732,0.00062291,2]
[321223719,1711990241280,-167.0,0.0006232,2]
[321223720,1711990241290,-150.0,0.00062386,120]
[321223721,1711990241299,-150.0,0.0006239,120]
[321223722,1711990241308,-200.83032336,0.000624,65]
[321223723,1711990241318,-166.66666667,0.00062451,120]
[321223724,1711990241330,-150.0,0.000625,118]
[321223725,1711990241340,-2309.61,0.0006256,120]
[321223726,1711990241350,-988.0,0.000626,50]
[321223727,1711990241359,-164.45,0.00062603,2]
[321223728,1711990241369,-151.08,0.00062603,2]
[321223729,1711990241379,-152.0,0.00062682,4]
[321223730,1711990241388,-1691.22486434,0.00062718,42]
[321223731,1711990241398,-294.0,0.0006272,60]
[321223732,1711990241408,-208.0,0.0006282,30]
[321223733,1711990241418,-648.95150881,0.000629,30]
[321223734,1711990241427,-626.60839084,0.000629,2]
[321223735,1711990241436,-168.08128427,0.00062904,120]
[321223736,1711990241446,-154.8746176,0.00062904,120]
[321223737,1711990241455,-156.9090919,0.00062932,120]
[321223738,1711990241464,-154.47720026,0.0006296,120]
[321223739,1711990241474,-200.0,0.00062987,4]
[321223740,1711990241484,-175.85841182,0.0006299,120]
[321223741,1711990241493,-176.35,0.0006299,120]
[321223742,1711990241503,-156.48525495,0.0006299,120]
[321223743,1711990241512,-156.48525495,0.0006299,120]
[321223744,1711990241522,-156.48525495,0.0006299,120]
[321223745,1711990241531,-156.48525495,0.0006299,120]
[321223746,1711990241540,-156.48525495,0.0006299,120]
[321223747,1711990241550,-154.41379947,0.0006299,120]
[321223748,1711990241560,-154.91,0.0006299,120]
[321223749,1711990241570,-154.60129947,0.0006299,120]
[321223750,1711990241580,-154.60129947,0.0006299,120]
[321223751,1711990241590,-154.60129947,0.0006299,120]
[321223752,1711990241600,-154.60129947,0.0006299,120]
[321223753,1711990241610,-154.60129947,0.0006299,120]
[321223754,1711990241619,-100000.0,0.00063,63]
[321223755,1711990241629,-500.0,0.00063,30]
[321223756,1711990241639,-200590.21517604,0.00063,120]
[321223757,1711990241667,-49984.61400004,0.00063,120]
[321223758,1711990241679,-1609.10620003,0.00063,120]
[321223759,1711990241810,-376.97380004,0.000603,120]
[321223760,1711990241824,-828.02619996,0.000603,120]
[321223761,1711990241834,-8198.40576205,0.00063,120]
[321223762,1711990241858,-343.82240179,0.00063,120]
[321223763,1711990241871,-10553.5448895,0.00063,120]
[321223764,1711990241882,-514.20716946,0.00063,120]
[321223766,1711990243078,-54243.33733812,0.00063,120]
[321223767,1711990243090,-28573.78008288,0.00063,120]
[321223768,1711990243282,-185.47880222,0.00063,120]
[321223769,1711990243312,-0.56020047,0.00063,120]
[321223770,1711990243361,-5917.76994183,0.00063,120]
[321223771,1711990243530,-1536.81822237,0.00063,120]
[321223772,1711990243541,-3449.4,0.00063,120]
[321223801,1711990247225,-2442.96707083,0.00058255,120]
[321223802,1711990247234,-218.56,0.0006199,10]
[321223803,1711990247244,-20752.97932648,0.00062999,60]
[321223804,1711990247253,-51311.30919587,0.00063,120]
[321223805,1711990247267,-156273.22633005,0.00063,120]
[321223806,1711990256960,8776.26907126,0.00039,4]
[321223808,1711990260204,286.98074511,0.00039,4]
[321223809,1711990260875,545.11341717,0.0003783,4]
[321223810,1711990262265,938.23441987,0.00039,4]
[321223811,1711990262660,1129.96929904,0.00039,4]
[321223812,1711990263489,17035.21366196,0.00039,4]
[321223813,1711990269863,119437.13938559,0.00025,2]
[321223814,1711990269907,125000.0,0.00025,2]
[321223815,1711990269933,24468.60756516,0.00025,2]
[321223816,1711990269954,2618.75822172,0.00025,2]
[321223817,1711990269985,9516.04780146,0.00025,2]
[321223818,1711990270010,25000.0,0.00025,2]
[321223819,1711990270040,50000.0,0.00025,2]
[321223820,1711990270065,25000.0,0.00025,2]
[321223821,1711990270094,59216.28305571,0.00025,2]
[321223822,1711990270139,122712.33088894,0.00025,2]
[321223823,1711990270165,25000.0,0.00025,2]
[321223824,1711990270190,2387592.2151567,0.00025,2]
[321223825,1711990316745,23637.14994738,6.94e-05,2]
[321223826,1711990330459,4536.91024269,0.000199,3]
[321223827,1711990340595,407.33464593,0.0003,2]
[321223831,1711990439456,62771.74599316,0.00025,2]
[321223842,1711990694829,-2000.0,0.00034996,2]
[321223843,1711990695380,-1204.3543578,0.00034996,2]
[321223844,1711990695402,-795.6456422,0.00034997,2]
[321223845,1711990695939,-249.97608846,0.00034997,2]
[321223846,1711990695962,-1750.02391154,0.00034997,4]
[321223847,1711990696432,-1793.78362208,0.00034997,4]
[321223848,1711990696459,-206.21637792,0.00034998,4]
[321223849,1711990696927,-418.23607357,0.00034998,4]
[321223850,1711990696950,-312.92214396,0.00034998,4]
[321223851,1711990696973,-1268.84178247,0.00034999,13]
[321223852,1711990697350,-2000.0,0.00034999,13]
[321223853,1711990697788,-2000.0,0.00034999,13]
[321223854,1711990698191,-2000.0,0.00034999,13]
[321223855,1711990698634,-2000.0,0.00034999,13]
[321223856,1711990699079,-2000.0,0.00034999,13]
[321223857,1711990699812,-1412.62604493,0.00034999,13]
[321223858,1711990785312,-3000.0,0.00035,2]
[321223859,1711990785955,-3000.0,0.00035,2]
[321223860,1711990792574,-2600.0,0.00035,2]
[321223861,1711990813731,-542.81568869,0.00034999,4]
[321223862,1711990813753,-3997.18431131,0.00035,2]
[321223868,1711991237182,-1401.79529549,0.00034898,4]
[321223869,1711991237201,-522.49119255,0.00034899,4]
[321223870,1711991237220,-164.3717067,0.000349,2]
[321223871,1711991237239,-477.3519105,0.00034999,4]
[321223872,1711991237258,-4051.38947558,0.00035,2]
[321223873,1711991251303,-542.81568869,0.00034897,4]
[321223874,1711991251324,-82.38940188,0.00035,2]
[321223893,1711991432472,-1570.22495441,0.00035,2]
[321223894,1711991432481,-155.0,0.00035,2]
[321223895,1711991432490,-152.59,0.00037808,2]
[321223896,1711991432500,-159.12,0.00037808,2]
[321223897,1711991432509,-195.07647238,0.0003888,2]
[321223898,1711991432519,-475.27811161,0.0003999,2]
[321223899,1711991432528,-1434.95477133,0.0004,7]
[321223900,1711991432537,-1030.43983596,0.00041997,4]
[321223901,1711991432549,-1477.67255991,0.00041997,4]
[321223902,1711991432644,-19572.47259536,0.00041997,4]
[321223903,1711991432653,-11564.37853384,0.00041998,4]
[321223904,1711991432664,-2714.51224078,0.00041999,4]
[321223905,1711991432675,-2477.68776308,0.00042,30]
[321223906,1711991432685,-451.94,0.00042,2]
[321223907,1711991432695,-682.1145,0.00043412,120]
[321223908,1711991432704,-159.12,0.00044892,2]
[321223909,1711991432713,-457.37,0.00046405,2]
[321223910,1711991432722,-151.0,0.00048,120]
[321223911,1711991432732,-233.65,0.00048246,2]
[321223912,1711991432742,-250.0,0.00048342,120]
[321223913,1711991432751,-150.0,0.00048385,2]
[321223914,1711991432761,-1539.74,0.00048654,120]
[321223918,1711991432771,-457.37,0.00048669,2]
[321223922,1711991432780,-158.73,0.00048876,2]
[321223926,1711991432790,-2442.96707083,0.00048962,2]
[321223930,1711991432799,-603.65,0.00048998,2]
[321223934,1711991432808,-1041.7,0.00049001,2]
[321223938,1711991432817,-1792.06,0.00049046,2]
[321223942,1711991432826,-177.17,0.00049062,10]
[321223946,1711991432835,-1000.0,0.00049079,2]
[321223949,1711991432845,-153.35,0.00049092,15]
[321223952,1711991432854,-1782.49,0.00049131,2]
[321223954,1711991432866,-500.0,0.00049171,2]
[321223956,1711991432876,-2410.34,0.00049185,2]
[321223958,1711991432885,-158.73,0.00049385,2]
[321223960,1711991432894,-1353.83,0.00049487,120]
[321223962,1711991432903,-23900.0,0.00049534,2]
[321223964,1711991432913,-862.64,0.00049606,2]
[321223966,1711991432922,-1909.38,0.00049713,2]
[321223968,1711991432931,-153.65,0.0004974,120]
[321223970,1711991432940,-500.0,0.00049778,2]
[321223972,1711991432949,-200.0,0.00049786,2]
[321223974,1711991432958,-158.73,0.00049895,2]
[321223976,1711991432967,-680.23406332,0.00049899,2]
[321223977,1711991433034,-1436.32,0.00049913,2]
[321223978,1711991433043,-250.0,0.00049913,120]
[321223980,1711991433052,-12560.32,0.00049967,2]
[321223981,1711991433061,-1504.5281988,0.0005,2]
[321223982,1711991433071,-200.0,0.00050022,2]
[321223984,1711991433080,-1698.7019,0.00050245,2]
[321223986,1711991433090,-254.9915,0.00050245,2]
[321223988,1711991433099,-151.0,0.00050329,120]
[321223989,1711991433108,-29489.0,0.00050346,2]
[321223991,1711991433119,-158.73,0.00050404,2]
[321223993,1711991433129,-2431.13672385,0.00050563,2]
[321223995,1711991433139,-4166.49,0.00050576,2]
[321223997,1711991433148,-3202.48,0.00050774,2]
[321223999,1711991433158,-158.73,0.00050913,2]
[321224001,1711991433167,-457.37,0.00050932,2]
[321224003,1711991433177,-2442.96707083,0.00050993,120]
[321224005,1711991433185,-196.41457958,0.00051197,2]
[321224007,1711991433195,-264.28399377,0.00051197,4]
[321224009,1711991433204,-1241.18500266,0.00051198,4]
[321224011,1711991433213,-1748.2759959,0.00051323,2]
[321224013,1711991433223,-158.73,0.00051423,2]
[321224015,1711991433232,-603.65,0.00051738,2]
[321224017,1711991433241,-6855.2803,0.000519,2]
[321224019,1711991433250,-159.12,0.00051976,2]
[321224021,1711991433260,-152.59,0.00051977,2]
[321224024,1711991433279,-5899.32825728,0.00052,120]
[321224026,1711991433288,-566.95,0.00052,3]
[321224028,1711991433297,-264.67,0.00052144,120]
[321224030,1711991433308,-2500.0,0.00052621,2]
[321224032,1711991433317,-151.0,0.00052658,120]
[321224034,1711991433326,-5651.693,0.00052664,2]
[321224036,1711991433335,-1748.27599585,0.00052832,2]
[321224038,1711991433344,-2442.96707083,0.00053024,120]
[321224040,1711991433353,-1041.6383,0.00053124,2]
[321224041,1711991433364,-1000.0,0.00053125,2]
[321224043,1711991433374,-4927.7378,0.00053126,2]
[321224045,1711991433383,-457.37,0.00053196,2]
[321224047,1711991433393,-425.24898664,0.00053196,4]
[321224049,1711991433402,-1200.0,0.00053205,30]
[321224051,1711991433412,-155.90250416,0.00053223,4]
[321224053,1711991433421,-205.83331766,0.00053223,4]
[321224056,1711991433430,-2109.34189591,0.00053223,4]
[321224057,1711991433641,-155.30824713,0.00053223,4]
[321224058,1711991433651,-681.07919272,0.00053223,4]
[321224059,1711991433660,-1208.42742557,0.00053223,4]
[321224060,1711991433671,-156.31285681,0.00053224,4]
[321224061,1711991433682,-340.52396705,0.00053224,4]
[321224062,1711991433691,-155.0,0.00053224,4]
[321224063,1711991433700,-155.98337894,0.00053224,4]
[321224064,1711991433710,-155.0,0.00053224,4]
[321224065,1711991433719,-854.93307856,0.00053224,10]
[321224066,1711991433728,-3149.40688435,0.00053224,4]
[321224067,1711991433742,-2345.35254533,0.00053224,4]
[321224068,1711991433752,-321.35550353,0.00053224,4]
[321224069,1711991433761,-868.62075854,0.00053224,4]
[321224070,1711991433771,-11826.44803425,0.00053224,2]
[321224071,1711991433780,-3090.22216116,0.00053224,4]
[321224072,1711991433790,-1203.36847789,0.00053224,4]
[321224073,1711991433799,-718.89301559,0.00053224,2]
[321224074,1711991433808,-570.43164855,0.00053224,4]
[321224075,1711991433818,-3859.91010838,0.00053224,4]
[321224076,1711991433827,-205.76310351,0.00053224,4]
[321224077,1711991433837,-20752.97932648,0.00053225,60]
[321224078,1711991433848,-100000.0,0.00053226,2]
[321224079,1711991433857,-177.16099459,0.00053246,14]
[321224080,1711991433869,-153.65,0.00053346,120]
[321224081,1711991433879,-1000.0,0.00053539,2]
[321224082,1711991433888,-167.01,0.00053962,2]
[321224083,1711991433897,-155.66866999,0.00054,4]
[321224084,1711991433907,-153.35,0.00054229,120]
[321224085,1711991433917,-1748.27599585,0.0005434,2]
[321224086,1711991433926,-603.65,0.00054477,2]
[321224087,1711991433935,-2019.8945893,0.00054594,26]
[321224088,1711991433944,-449.17905412,0.00054694,2]
[321224089,1711991433953,-268.49660707,0.00054794,120]
[321224090,1711991433962,-530.73136111,0.00054794,4]
[321224091,1711991433971,-500.0,0.00054794,120]
[321224092,1711991433981,-500.0,0.00054794,120]
[321224093,1711991433990,-500.0,0.00054794,120]
[321224094,1711991433999,-500.0,0.00054794,120]
[321224095,1711991434009,-523.3,0.00054794,120]
[321224096,1711991434019,-500.0,0.00054794,120]
[321224097,1711991434028,-500.0,0.00054794,120]
[321224098,1711991434037,-500.0,0.00054794,120]
[321224099,1711991434046,-503.82,0.00054794,120]
[321224100,1711991434055,-500.0,0.00054794,120]
[321224101,1711991434064,-500.0,0.00054794,120]
[321224102,1711991434073,-500.0,0.00054794,120]
[321224103,1711991434082,-500.0,0.00054794,120]
[321224104,1711991434090,-500.0,0.00054794,120]
[321224105,1711991434099,-500.0,0.00054794,120]
[321224106,1711991434109,-500.0,0.00054794,120]
[321224107,1711991434119,-500.0,0.00054794,120]
[321224108,1711991434128,-500.0,0.00054794,120]
[321224109,1711991434136,-352.65935168,0.00054794,120]
[321224110,1711991434146,-500.0,0.00054794,120]
[321224111,1711991434155,-500.0,0.00054794,120]
[321224112,1711991434165,-2665.58,0.00054795,2]
[321224113,1711991434174,-184.48909829,0.000549,2]
[321224114,1711991434183,-151.0,0.00054986,120]
[321224115,1711991434192,-150.72,0.0005499,120]
[321224116,1711991434202,-223.81801404,0.0005499,2]
[321224117,1711991434211,-1893.29,0.0005499,30]
[321224118,1711991434224,-1893.29,0.0005499,30]
[321224119,1711991434233,-3845.59528562,0.00055,120]
[321224120,1711991434241,-281542.45937977,0.00055,90]
[321224121,1711991434251,-6417.86962749,0.00055,64]
[321224122,1711991434260,-161.67,0.00055068,120]
[321224123,1711991434269,-500.0,0.00055068,120]
[321224124,1711991434282,-310.22,0.00055068,120]
[321224125,1711991434291,-152.24,0.00055068,120]
[321224126,1711991434300,-500.0,0.00055068,120]
[321224127,1711991434310,-581.35,0.00055068,120]
[321224128,1711991434319,-210.82,0.00055068,120]
[321224129,1711991434329,-1000.0,0.00055213,120]
[321224130,1711991434338,-500.0,0.00055342,120]
[321224131,1711991434348,-500.0,0.00055342,120]
[321224132,1711991434357,-457.37,0.0005546,2]
[321224133,1711991434370,-196.99,0.00055616,120]
[321224134,1711991434379,-292.35,0.00055616,120]
[321224135,1711991434389,-213.17723811,0.00055763,2]